bitfinex-derivatives/quotes_SOLF0:USTF0_20241015
["timestamp","ask_amount","ask_price","bid_price","bid_amount"]
[1728991069027,3.2545,153.66,153.63,3.255]
[1728991069230,3.2543,153.67,153.58,32.025]
[1728991069429,1.346,153.72,153.67,3.254]
[1728991069638,5.72,153.71,153.62,30.73]
[1728991069845,3.2534,153.71,153.63,1.3877]
[1728991070238,3.2536,153.7,153.67,3.254]
[1728991070446,1.346,153.72,153.64,1.3394]
[1728991070747,1.346,153.72,153.68,3.2538]
[1728991070945,3.2535,153.71,153.68,3.2538]
[1728991071344,3.2541,153.68,153.65,3.2545]
[1728991071545,25.01,153.7,153.64,1.3394]
[1728991071747,5.72,153.68,153.57,26.3977]
[1728991071940,3.2547,153.65,153.62,3.2551]
[1728991072444,3.2548,153.64,153.61,3.2553]
[1728991072644,3.2548,153.64,153.59,1.3823]
[1728991073254,3.2544,153.66,153.59,1.3823]
[1728991073548,5.72,153.68,153.59,1.3823]
[1728991073739,5.72,153.68,153.64,3.2548]
[1728991074052,5.72,153.68,153.59,1.3823]
[1728991074547,3.2546,153.65,153.61,3.2553]
[1728991074740,3.2546,153.65,153.59,1.3823]
[1728991075457,3.2546,153.65,153.62,3.2551]
[1728991077655,3.255,153.63,153.59,1.3823]
[1728991078042,3.2552,153.63,153.6,3.2555]
[1728991078747,3.2553,153.62,153.59,3.2557]
[1728991079551,30.73,153.64,153.55,2.7293]
[1728991079750,30.73,153.64,153.57,3.2561]
[1728991080152,30.73,153.64,153.55,2.7293]
[1728991080357,30.73,153.64,153.59,3.2558]
[1728991080554,30.73,153.64,153.55,2.7293]
[1728991080755,30.73,153.64,153.55,1.3779]
[1728991080953,25.01,153.62,153.51,1.3335]
[1728991081155,5.72,153.64,153.51,1.3213]
[1728991081156,25.01,153.59,153.51,1.3213]
[1728991081451,25.01,153.59,153.4,70.34]
[1728991081452,3.2575,153.52,153.42,5.72]
[1728991081752,3.2575,153.52,153.43,1.3148]
[1728991081958,3.2575,153.52,153.49,3.2579]
[1728991082659,8.9772,153.53,153.49,3.2579]
[1728991082957,8.9772,153.53,153.43,1.3148]
[1728991082958,5.72,153.53,153.43,1.3148]
[1728991083149,3.2574,153.52,153.43,7.0348]
[1728991083559,3.2574,153.52,153.48,3.258]
[1728991083851,5.72,153.53,153.43,7.0348]
[1728991084256,5.72,153.53,153.5,3.2576]
[1728991084852,8.9772,153.53,153.5,3.2576]
[1728991085856,3.2575,153.52,153.48,3.2581]
[1728991086059,5.72,153.53,153.43,7.0348]
[1728991086359,3.2577,153.51,153.47,3.2582]
[1728991087553,3.2579,153.5,153.47,3.2582]
[1728991087759,5.72,153.53,153.45,3.2587]
[1728991087951,25.01,153.52,153.45,3.2587]
[1728991088255,3.2586,153.47,153.41,1.44632]
[1728991089059,5.6,153.48,153.41,1.44632]
[1728991089459,5.6,153.48,153.41,0.12502]
[1728991089657,25.01,153.46,153.41,0.12502]
[1728991090058,3.2594,153.43,153.41,0.12502]
[1728991090357,5.6,153.43,153.41,0.12502]
[1728991091553,3.2595,153.42,153.41,0.12502]
[1728991092260,8.8595,153.42,153.41,0.12502]
[1728991094453,28.269,153.44,153.41,3.38472]
[1728991094658,5.96755045,153.51,153.41,0.12502]
[1728991094659,5.6,153.43,153.41,0.12502]
[1728991095467,8.8593,153.43,153.41,0.12502]
[1728991095860,5.6,153.43,153.41,0.12502]
[1728991096164,3.2595,153.42,153.41,0.12502]
[1728991096560,8.8593,153.43,153.41,0.12502]
[1728991096761,5.6,153.43,153.41,0.12502]
[1728991097165,3.2595,153.42,153.41,0.12502]
[1728991099058,25.01,153.42,153.36,4.559]
[1728991099255,25.01,153.39,153.35,0.12502]
[1728991099563,5.6,153.38,153.35,3.38592]
[1728991099758,8.8604,153.38,153.35,0.12502]
[1728991099962,5.6,153.38,153.35,0.12502]
[1728991100163,30.61,153.41,153.35,0.12502]
[1728991100366,3.26,153.4,153.35,0.12502]
[1728991100764,30.61,153.41,153.36,3.2607]
[1728991100963,3.2602,153.39,153.36,3.2607]
[1728991101261,30.61,153.41,153.35,0.12502]
[1728991101460,3.2606,153.37,153.35,0.12502]
[1728991102158,5.6,153.37,153.35,0.12502]
[1728991102360,3.2607,153.36,153.35,0.12502]
[1728991102673,5.6,153.38,153.35,3.38592]
[1728991102872,8.8603,153.38,153.35,0.12502]
[1728991103169,5.6,153.38,153.35,0.12502]
[1728991103465,28.2707,153.36,153.35,0.12502]
[1728991103664,25.01,153.39,153.35,0.12502]
[1728991103971,3.2607,153.36,153.35,0.12502]
[1728991104669,3.2607,153.37,153.35,0.12502]
[1728991104871,5.6,153.38,153.35,0.12502]
[1728991105373,3.2607,153.36,153.35,0.12502]
[1728991105859,3.2606,153.37,153.34,3.261]
[1728991106064,3.2606,153.37,153.29,0.12502]
[1728991106065,5.6,153.37,153.29,0.12502]
[1728991106465,25.01,153.39,153.29,0.12502]
[1728991106667,5.6,153.38,153.29,0.12502]
[1728991106968,3.2603,153.38,153.34,3.261]
[1728991107170,1.3664,153.42,153.29,25.13502]
[1728991107364,5.6,153.41,153.31,25.01]
[1728991107561,5.6,153.41,153.32,1.3885]
[1728991107766,5.6,153.41,153.33,5.6]
[1728991107977,3.26,153.4,153.35,3.2609]
[1728991108266,5.6,153.41,153.36,1.3756]
[1728991110169,3.2601,153.39,153.36,1.3756]
[1728991110369,5.6,153.41,153.32,2.7639]
[1728991110673,25.01,153.37,153.31,1.3828]
[1728991110880,5.6,153.36,153.31,1.3828]
[1728991111179,5.6,153.38,153.31,1.3828]
[1728991112471,3.2609,153.36,153.32,3.2614]
[1728991112669,25.01,153.37,153.31,1.3828]
[1728991113079,3.2614,153.34,153.31,1.3828]
[1728991113278,3.2614,153.34,153.29,3.38702]
[1728991113279,26.3873,153.37,153.29,0.12502]
[1728991113473,1.3773,153.37,153.29,0.12502]
[1728991113673,2.7087,153.37,153.29,0.12502]
[1728991113870,25.01,153.35,153.29,0.12502]
[1728991114076,3.2616,153.32,153.29,3.38722]
[1728991114282,5.86,153.34,153.29,0.12502]
[1728991114671,3.262,153.31,153.29,0.12502]
[1728991114879,5.86,153.34,153.29,0.12502]
[1728991115182,3.2619,153.31,153.29,0.12502]
[1728991115369,5.86,153.31,153.06,22.27600162]
[1728991115574,25.01,153.3,153.17,27.7403]
[1728991115774,5.86,153.31,153.26,3.2628]
[1728991115970,5.86,153.34,153.22,30.87]
[1728991116777,28.2722,153.3,153.25,3.2629]
[1728991116977,25.01,153.3,153.19,25.01]
[1728991117170,25.01,153.3,153.2,5.86]
[1728991117370,25.01,153.3,153.23,3.2635]
[1728991117575,25.01,153.3,153.24,1.3297]
[1728991117781,25.01,153.3,153.18,1.3096]
[1728991117980,25.01,153.3,153.2,1.3297]
[1728991118176,5.86,153.31,153.2,1.3297]
[1728991118393,25.01,153.33,153.21,5.86]
[1728991118581,9.1217,153.32,153.21,5.86]
[1728991118775,5.86,153.32,153.21,5.86]
[1728991119382,25.01,153.33,153.21,5.86]
[1728991119580,9.1217,153.32,153.27,3.2625]
[1728991120083,3.2621,153.3,153.26,3.2628]
[1728991120278,5.86,153.32,153.21,5.86]
[1728991120681,3.2624,153.29,153.25,3.2631]
[1728991120879,25.01,153.31,153.21,5.86]
[1728991121181,3.2626,153.28,153.24,3.2631]
[1728991121381,30.87,153.28,153.2,1.3297]
[1728991121784,30.87,153.28,153.18,1.3096]
[1728991121785,25.01,153.3,153.17,25.01]
[1728991121988,25.01,153.3,153.19,4.0692]
[1728991122280,30.87,153.3,153.19,4.0692]
[1728991122485,34.1321,153.3,153.19,4.0692]
[1728991122687,30.87,153.3,153.19,4.0692]
[1728991123185,34.1321,153.3,153.19,4.0692]
[1728991123386,30.87,153.3,153.19,4.0692]
[1728991123775,3.2627,153.27,153.19,4.0692]
[1728991124183,30.87,153.3,153.19,4.0692]
[1728991124887,3.2628,153.27,153.23,3.2633]
[1728991125286,3.2628,153.27,153.22,3.2637]
[1728991125287,3.2627,153.27,153.22,3.2637]
[1728991125483,30.87,153.3,153.22,3.2637]
[1728991125684,30.87,153.3,153.19,4.0692]
[1728991125887,3.2624,153.29,153.25,3.2631]
[1728991126390,30.87,153.3,153.2,1.3283]
[1728991126583,3.2626,153.28,153.24,3.2631]
[1728991126785,25.01,153.28,153.2,1.3283]
[1728991127098,5.86,153.3,153.2,1.3283]
[1728991127688,3.2623,153.29,153.25,3.2631]
[1728991127889,5.86,153.3,153.2,1.3283]
[1728991128087,3.263,153.26,153.2,1.3283]
[1728991128283,25.01,153.29,153.2,1.3283]
[1728991128680,25.01,153.29,153.25,3.2629]
[1728991128681,34.1323,153.29,153.25,3.2629]
[1728991128990,34.1323,153.29,153.2,1.3283]
[1728991129183,34.1323,153.29,153.25,3.2629]
[1728991129692,3.2626,153.28,153.2,1.3283]
[1728991130386,30.87,153.29,153.22,3.2637]
[1728991130978,3.263,153.26,153.22,3.2637]
[1728991131181,3.263,153.26,153.23,3.2635]
[1728991132387,3.263,153.26,153.22,3.2636]
[1728991132776,3.263,153.26,153.2,1.3283]
[1728991132988,3.263,153.26,153.23,3.2635]
[1728991134791,25.01,153.26,153.19,1.3065]
[1728991134984,3.2634,153.24,153.21,3.2638]
[1728991135185,25.01,153.26,153.19,1.3065]
[1728991135379,5.86,153.25,153.19,1.3065]
[1728991137287,3.2637,153.22,153.19,4.5708]
[1728991137593,5.86,153.25,153.19,1.3065]
[1728991138194,25.01,153.24,153.15,1.3982]
[1728991138392,7.213,153.25,152.84,35.97551975]
[1728991138393,3.2644,153.19,153.16,3.2648]
[1728991138592,25.01,153.21,153.14,1.3943]
[1728991138593,30.87,153.21,153.14,1.3943]
[1728991138995,1.353,153.25,153.14,1.3943]
[1728991139293,25.01,153.31,153.18,25.01]
[1728991139499,30.87,153.31,153.19,9.06585905]
[1728991139700,3.2621,153.3,153.26,3.2627]
[1728991139900,30.87,153.31,153.2,1.3495]
[1728991140192,3.2627,153.27,153.23,3.2634]
[1728991140394,25.01,153.29,153.23,3.2634]
[1728991140589,25.01,153.29,153.17,4.58181327]
[1728991140791,1.3536,153.33,153.21,25.01]
[1728991140987,30.87,153.37,153.24,25.01]
[1728991141193,28.2706,153.37,153.28,3.2623]
[1728991141395,28.2706,153.37,153.29,5.86]
[1728991141589,25.01,153.37,153.29,5.86]
[1728991142796,25.01,153.37,153.32,3.2614]
[1728991143788,25.01,153.37,153.3,3.262]
[1728991143991,25.01,153.37,153.25,2.7117]
[1728991144189,25.01,153.37,153.26,6.16]
[1728991144389,26.3537,153.37,153.29,3.2621]
[1728991144791,26.3537,153.37,153.31,3.2617]
[1728991144998,26.3537,153.37,153.26,6.16]
[1728991145398,26.3537,153.37,153.29,3.2622]
[1728991145602,26.3537,153.37,153.26,6.16]
[1728991145903,26.3537,153.37,153.29,3.2621]
[1728991146102,26.3537,153.37,153.26,6.16]
[1728991146902,26.3537,153.37,153.3,3.2619]
[1728991147103,26.3537,153.37,153.26,6.16]
[1728991147291,26.3537,153.37,153.29,3.2622]
[1728991147498,26.3537,153.37,153.26,6.16]
[1728991148204,32.5137,153.37,153.26,6.16]
[1728991148404,32.5137,153.37,153.32,3.2614]
[1728991148601,32.5137,153.37,153.26,6.16]
[1728991148802,31.17,153.37,153.26,6.16]
[1728991149105,31.17,153.37,153.32,3.2614]
[1728991149303,6.16,153.37,153.26,6.16]
[1728991149800,6.16,153.37,153.32,3.2614]
[1728991150197,31.17,153.37,153.26,6.16]
[1728991150407,31.17,153.37,153.3,3.262]
[1728991151207,31.17,153.37,153.31,3.2618]
[1728991151599,31.17,153.37,153.26,6.16]
[1728991151905,31.17,153.37,153.26,31.17]
[1728991152203,6.16,153.37,153.26,31.17]
[1728991152801,31.17,153.37,153.26,31.17]
[1728991153106,31.17,153.37,153.26,6.16]
[1728991153801,25.01,153.34,153.26,6.16]
[1728991154105,1.359,153.33,153.26,6.16]
[1728991154308,1.359,153.33,153.25,2.7117]
[1728991154504,1.359,153.33,153.25,8.8717]
[1728991154700,25.01,153.31,153.25,1.3622]
[1728991154902,25.01,153.26,153.18,1.2979]
[1728991155508,25.01,153.26,153.17,7.5311]
[1728991156002,6.16,153.25,153.17,1.3711]
[1728991156205,8.8228,153.25,153.17,1.3711]
[1728991156707,33.8328,153.25,153.17,1.3711]
[1728991157104,33.8328,153.25,153.18,3.2644]
[1728991157305,33.8328,153.25,153.14,6.16]
[1728991157506,25.01,153.22,153.14,6.16]
[1728991157806,25.01,153.22,153.12,2.6548]
[1728991158004,6.16,153.21,153.12,2.6548]
[1728991158207,6.16,153.21,153.12,1.3569]
[1728991158706,6.16,153.21,153.17,3.2646]
[1728991158906,6.16,153.21,153.12,1.3569]
[1728991159413,6.16,153.21,153.13,6.16]
[1728991159815,6.16,153.23,153.18,3.2645]
[1728991160215,6.16,153.23,153.13,6.16]
[1728991160407,6.16,153.23,153.14,26.2984]
[1728991161406,6.16,153.23,153.16,3.2649]
[1728991161606,6.16,153.23,153.14,26.2984]
[1728991162008,6.16,153.23,153.19,3.2643]
[1728991162511,6.16,153.23,153.2,3.264]
[1728991162911,1.286,153.25,153.17,6.16]
[1728991163109,6.16,153.27,153.17,6.16]
[1728991163315,6.16,153.27,153.18,25.01]
[1728991163504,6.16,153.27,153.24,3.2632]
[1728991163703,6.16,153.27,153.18,25.01]
[1728991164307,6.16,153.27,153.17,6.16]
[1728991164717,25.01,153.25,153.17,6.16]
[1728991164907,1.3975,153.24,153.14,7.4484]
[1728991165113,3.264,153.21,153.17,3.2647]
[1728991165410,6.16,153.23,153.14,7.4484]
[1728991165920,3.2638,153.22,153.18,3.2644]
[1728991166122,6.16,153.23,153.18,3.2644]
[1728991166511,3.2643,153.2,153.15,3.2651]
[1728991166716,3.2643,153.2,153.11,26.4193]
[1728991166717,31.17,153.23,153.12,7.5169]
[1728991167209,3.2641,153.21,153.12,7.5169]
[1728991167923,3.2638,153.22,153.18,3.2644]
[1728991168922,9.4236,153.23,153.19,3.2642]
[1728991169225,1.3975,153.24,153.16,6.16]
[1728991169418,1.3975,153.24,153.23,3.2635]
[1728991169722,6.16,153.27,153.16,31.17]
[1728991170017,3.2631,153.25,153.22,3.2637]
[1728991170522,3.2631,153.25,153.16,31.17]
[1728991171318,3.2631,153.25,153.21,3.2638]
[1728991171519,3.2631,153.25,153.16,31.17]
[1728991172117,3.2631,153.25,153.21,3.2638]
[1728991172319,3.2633,153.24,153.21,3.2638]
[1728991172716,3.2633,153.24,153.2,3.2641]
[1728991173722,3.2632,153.25,153.21,3.2638]
[1728991173922,3.2632,153.25,153.16,6.16]
[1728991174426,4.5457,153.26,153.23,3.2635]
[1728991174823,1.2828,153.26,153.16,31.17]
[1728991175029,6.04,153.32,153.18,25.01]
[1728991175225,6.04,153.32,153.21,25.01]
[1728991175422,6.04,153.32,153.22,7.4238]
[1728991175629,9.3017,153.32,153.22,7.4238]
[1728991175819,6.04,153.32,153.22,7.4238]
[1728991176128,1.2828,153.33,153.22,10.76736821]
[1728991176323,6.04,153.35,153.23,25.01]
[1728991176532,9.301,153.35,153.23,25.01]
[1728991176923,6.04,153.35,153.23,25.01]
[1728991177124,6.04,153.35,153.32,3.2614]
[1728991177324,1.3053,153.37,153.28,6.04]
[1728991177519,1.3053,153.37,153.29,1.4153]
[1728991177728,3.2608,153.36,153.29,1.4153]
[1728991177929,1.3053,153.37,153.29,1.4153]
[1728991178226,4.566,153.37,153.33,3.2613]
[1728991178534,1.3053,153.37,153.29,1.4153]
[1728991178734,1.3053,153.37,153.31,3.2617]
[1728991179032,1.3053,153.37,153.29,2.7045]
[1728991179922,1.3053,153.37,153.33,3.2612]
[1728991180119,1.3053,153.37,153.29,8.7445]
[1728991180324,25.01,153.35,153.29,7.4553]
[1728991180526,25.01,153.35,153.3,3.262]
[1728991181229,3.2613,153.34,153.3,3.262]
[1728991181823,3.2614,153.33,153.29,4.6774]
[1728991182032,3.2614,153.33,153.24,1.2892]
[1728991182033,25.01,153.33,153.24,1.2892]
[1728991182233,25.01,153.3,153.24,8.7427]
[1728991182535,3.2622,153.29,153.24,1.4135]
[1728991183239,31.05,153.3,153.2,8.7964]
[1728991183431,31.05,153.3,153.2,10.2099]
[1728991183831,3.2624,153.29,153.25,3.263]
[1728991184224,31.05,153.3,153.24,3.2631]
[1728991184225,3.2626,153.28,153.24,3.2631]
[1728991184626,3.2626,153.28,153.2,10.2099]
[1728991185635,6.04,153.3,153.26,3.2628]
[1728991186035,3.2622,153.29,153.26,3.2628]
[1728991186236,31.05,153.31,153.2,10.2099]
[1728991186732,3.2622,153.3,153.2,10.2099]
[1728991187236,3.2622,153.3,153.23,3.2635]
[1728991187429,3.2622,153.3,153.2,10.2099]
[1728991188235,31.05,153.31,153.2,10.2099]
[1728991188627,34.3119,153.31,153.2,10.2099]
[1728991189030,3.2619,153.31,153.27,3.2625]
[1728991189237,25.01,153.41,153.28,33.8852]
[1728991189432,3.68452104,153.4,153.29,6.04]
[1728991189633,3.2604,153.38,153.33,3.2612]
[1728991189833,2.6785,153.4,153.33,3.2612]
[1728991190026,8.7185,153.4,153.29,6.04]
[1728991190226,3.2609,153.36,153.28,2.8352]
[1728991190430,8.7185,153.4,153.29,6.04]
[1728991190730,2.6785,153.4,153.36,3.2606]
[1728991190933,2.6785,153.4,153.29,6.04]
[1728991191133,2.6785,153.4,153.3,25.01]
[1728991191338,2.6785,153.4,153.36,3.2606]
[1728991192034,2.6785,153.4,153.35,3.2608]
[1728991192240,2.6785,153.4,153.34,6.04]
[1728991193033,2.6785,153.4,153.37,3.2604]
[1728991193234,2.6785,153.4,153.34,6.04]
[1728991193640,2.6785,153.4,153.37,3.2604]
[1728991194035,3.2596,153.42,153.34,6.04]
[1728991194538,3.2596,153.42,153.38,3.2602]
[1728991195440,3.2598,153.41,153.36,3.2606]
[1728991195629,3.2598,153.41,153.34,6.04]
[1728991196335,3.2597,153.42,153.38,3.2601]
[1728991196644,31.05,153.43,153.34,6.04]
[1728991196839,3.2599,153.41,153.36,3.2606]
[1728991197140,31.05,153.43,153.34,6.04]
[1728991197334,3.2598,153.41,153.38,3.2603]
[1728991197945,31.05,153.43,153.34,6.04]
[1728991198644,3.2597,153.41,153.38,3.2602]
[1728991199238,31.05,153.43,153.35,1.3978]
[1728991199441,3.2605,153.38,153.35,4.6587]
[1728991199636,31.05,153.43,153.35,1.3978]
[1728991199941,3.2599,153.4,153.37,3.2604]
[1728991200139,31.05,153.43,153.35,1.3978]
[1728991200538,3.2596,153.42,153.39,3.26]
[1728991200737,8.7101,153.44,153.35,1.3978]
[1728991201136,3.2597,153.41,153.38,3.2602]
[1728991202139,8.7101,153.44,153.35,1.3978]
[1728991202330,3.2594,153.43,153.35,26.4078]
[1728991202530,16.12385917,153.51,153.37,25.01]
[1728991202531,31.05,153.49,153.37,25.01]
[1728991202737,1.00665294,153.48,153.38,5.94]
[1728991202934,1.00665294,153.48,153.4,25.01]
[1728991203133,5.94,153.49,153.4,25.01]
[1728991203338,3.2581,153.49,153.46,3.2586]
[1728991203546,2.7159,153.51,153.42,5.94]
[1728991203742,2.7159,153.51,153.43,1.3375]
[1728991204043,3.258,153.49,153.43,1.3375]
[1728991204245,2.7159,153.51,153.43,1.3375]
[1728991204446,2.7159,153.51,153.46,3.2585]
[1728991204447,3.2579,153.5,153.46,3.2585]
[1728991204638,3.2579,153.5,153.43,1.3375]
[1728991204942,25.01,153.55,153.43,1.3375]
[1728991205238,6.94771294,153.54,153.43,1.3375]
[1728991205436,5.94,153.54,153.43,4.0574]
[1728991205639,5.94,153.54,153.45,25.01]
[1728991205844,1.3202,153.56,153.46,5.94]
[1728991206137,1.00778891,153.55,153.46,5.94]
[1728991206338,3.2568,153.55,153.49,3.258]
[1728991206547,3.2568,153.55,153.46,5.94]
[1728991206842,25.01,153.54,153.43,4.0574]
[1728991207143,25.01,153.54,153.44,5.94]
[1728991207144,3.2581,153.49,153.44,5.94]
[1728991207943,5.94,153.53,153.46,3.2585]
[1728991208146,1.00731693,153.52,153.44,5.94]
[1728991208447,3.2579,153.5,153.45,3.2587]
[1728991208641,3.2579,153.5,153.44,5.94]
[1728991209041,3.2579,153.5,153.46,3.2586]
[1728991209541,5.94,153.53,153.44,5.94]
[1728991209944,1.00753045,153.52,153.44,5.94]
[1728991210149,3.2579,153.5,153.45,3.2586]
[1728991210447,3.2579,153.5,153.44,5.94]
[1728991210448,5.94,153.53,153.44,5.94]
[1728991211240,3.2577,153.51,153.46,3.2586]
[1728991211545,5.94,153.53,153.44,5.94]
[1728991211744,26.3302,153.56,153.45,25.01]
[1728991212041,25.01,153.59,153.48,25.01]
[1728991212243,5.94,153.59,153.49,5.94]
[1728991212445,3.256,153.59,153.5,25.01]
[1728991212645,3.256,153.59,153.5,29.0828]
[1728991213147,3.256,153.59,153.55,3.2566]
[1728991214239,3.2557,153.6,153.56,3.2565]
[1728991214439,1.2826,153.61,153.54,5.94]
[1728991214843,3.256,153.59,153.55,3.2567]
[1728991215247,1.2826,153.61,153.54,5.94]
[1728991215444,3.2559,153.59,153.54,5.94]
[1728991216248,1.2826,153.61,153.56,3.2565]
[1728991216946,3.2557,153.6,153.56,3.2565]
[1728991217145,3.2557,153.6,153.54,5.94]
[1728991217345,3.2557,153.6,153.57,3.2562]
[1728991217741,3.2553,153.62,153.58,3.2559]
[1728991217943,5.94,153.69,153.58,5.94]
[1728991218142,1.3138,153.67,153.58,5.94]
[1728991218345,1.3138,153.67,153.55,25.01]
[1728991218546,25.01,153.64,153.52,25.01]
[1728991218844,3.2553,153.62,153.56,3.2565]
[1728991219052,30.95,153.65,153.55,5.94]
[1728991219238,5.94,153.65,153.52,25.01]
[1728991219443,30.95,153.65,153.53,5.94]
[1728991219945,3.2553,153.62,153.57,3.2561]
[1728991220140,30.95,153.65,153.52,25.01]
[1728991220343,25.01,153.63,153.5,29.0828]
[1728991220545,25.01,153.63,153.51,5.94]
[1728991220845,25.01,153.63,153.53,3.257]
[1728991221149,25.01,153.63,153.5,29.0828]
[1728991221444,25.01,153.63,153.51,5.94]
[1728991221946,25.01,153.63,153.52,5.94]
[1728991222146,3.2566,153.56,153.53,3.2571]
[1728991222336,3.2566,153.56,153.52,5.94]
[1728991222337,25.01,153.6,153.5,4.0728]
[1728991222646,3.2573,153.53,153.5,1.3885]
[1728991222842,25.01,153.58,153.5,1.3885]
[1728991223045,2.6383,153.59,153.5,1.3885]
[1728991223349,2.6383,153.59,153.53,3.257]
[1728991223551,2.6383,153.59,153.5,1.3885]
[1728991224750,3.2569,153.54,153.5,1.3885]
[1728991225139,2.6383,153.59,153.5,1.3885]
[1728991225348,2.6383,153.59,153.5,26.3985]
[1728991225549,2.6383,153.59,153.5,27.793]
[1728991225951,3.2562,153.58,153.5,27.793]
[1728991226245,25.01,153.63,153.52,25.01]
[1728991226452,5.94,153.63,153.53,5.94]
[1728991226642,5.94,153.64,153.53,5.94]
[1728991226849,5.94,153.64,153.53,7.2365]
[1728991227148,5.94,153.64,153.54,25.01]
[1728991227348,2.6116,153.65,153.54,25.01]
[1728991227541,3.256,153.59,153.56,3.2564]
[1728991227743,3.256,153.59,153.56,9.1964]
[1728991228051,3.2552,153.63,153.57,3.2562]
[1728991228248,2.6116,153.65,153.57,3.2562]
[1728991228646,3.2556,153.61,153.57,4.543]
[1728991229046,2.6116,153.65,153.57,4.5429]
[1728991229240,3.2556,153.61,153.57,1.2868]
[1728991229848,27.6216,153.65,153.57,1.2868]
[1728991230148,25.01,153.63,153.54,5.94]
[1728991230343,5.94,153.62,153.53,3.2571]
[1728991230541,3.2566,153.56,153.53,3.2571]
[1728991231141,5.94,153.62,153.51,7.2335]
[1728991231954,5.94,153.62,153.54,3.2569]
[1728991232343,5.94,153.62,153.51,1.2935]
[1728991232549,25.01,153.6,153.51,7.0735]
[1728991232747,30.95,153.62,153.51,7.0735]
[1728991232947,3.2563,153.58,153.54,3.2569]
[1728991233252,3.2563,153.58,153.51,7.0735]
[1728991233454,30.95,153.62,153.51,7.0735]
[1728991234347,3.2559,153.59,153.53,3.257]
[1728991234650,28.25188547,153.6,153.51,1.2935]
[1728991234948,25.01,153.55,153.46,1.3984]
[1728991235248,30.79,153.55,153.46,1.3984]
[1728991235454,3.2579,153.5,153.47,3.2582]
[1728991235653,25.01,153.52,153.43,1.3561]
[1728991235856,25.01,153.52,153.43,7.1361]
[1728991236054,3.2583,153.48,153.45,3.2586]
[1728991236554,3.2581,153.49,153.45,3.2586]
[1728991236956,25.01,153.52,153.43,7.1361]
[1728991237151,3.2579,153.5,153.43,7.1361]
[1728991237354,25.01,153.52,153.43,7.1361]
[1728991237953,3.2581,153.49,153.45,3.2586]
[1728991238154,25.01,153.5,153.43,1.3561]
[1728991238356,25.01,153.5,153.39,7.1784]
[1728991238653,25.01,153.48,153.39,7.0809]
[1728991238858,5.78,153.47,153.39,7.0809]
[1728991239054,3.2594,153.43,153.39,10.3409]
[1728991239250,5.78,153.47,153.39,7.0809]
[1728991239653,3.2592,153.44,153.4,3.2598]
[1728991240152,3.2594,153.43,153.39,10.3409]
[1728991240354,5.78,153.47,153.39,7.0809]
[1728991241156,3.2589,153.45,153.4,3.2597]